[Event "Swedish U16 Team Championship 2019 - Final"]
[Site "Molnlycke Kulturhus, Biblioteksgatan 2, Molnlycke, Sweden"]
[Date "2019.08.16"]
[Round "1.6"]
[White "Petersson, David"]
[Black "Sandberg, Simon"]
[Result "1/2-1/2"]
[TimeControl "90 minutes + 30 seconds per move from move one."]
[WhiteElo "1532"]
[BlackElo "1375"]

1. d4 {[%clk 01:30:57]} {[%emt 00:00:02]} Nf6 {[%clk 01:30:41]} {[%emt
00:00:18]} 2. Bf4 {[%clk 01:31:14]} {[%emt 00:00:14]} d5 {[%clk 01:29:47]}
{[%emt 00:01:24]} 3. e3 {[%clk 01:31:25]} {[%emt 00:00:19]} Bf5 {[%clk
01:27:37]} {[%emt 00:02:40]} 4. c4 {[%clk 01:31:01]} {[%emt 00:00:54]} c6
{[%clk 01:23:53]} {[%emt 00:04:14]} 5. Qb3 {[%clk 01:29:10]} {[%emt 00:02:21]}
Qb6 {[%clk 01:21:33]} {[%emt 00:02:50]} 6. c5 {[%clk 01:28:50]} {[%emt
00:00:49]} Qa5+ {[%clk 01:14:07]} {[%emt 00:07:55]} 7. Nc3 {[%clk 01:25:05]}
{[%emt 00:04:15]} b6 {[%clk 01:02:33]} {[%emt 00:12:05]} 8. Bc7 {[%clk
01:02:14]} {[%emt 00:23:20]} Nbd7 {[%clk 00:53:31]} {[%emt 00:09:31]} 9. Nf3
{[%clk 00:57:19]} {[%emt 00:05:26]} Rc8 {[%clk 00:51:27]} {[%emt 00:02:34]} 10.
cxb6 {[%clk 00:54:49]} {[%emt 00:03:00]} axb6 {[%clk 00:49:03]} {[%emt
00:02:54]} 11. Bf4 {[%clk 00:50:39]} {[%emt 00:04:39]} Ne4 {[%clk 00:44:25]}
{[%emt 00:05:09]} 12. Be2 {[%clk 00:47:19]} {[%emt 00:03:50]} e6 {[%clk
00:40:26]} {[%emt 00:04:29]} 13. O-O {[%clk 00:46:27]} {[%emt 00:01:21]} Ndf6
{[%clk 00:36:22]} {[%emt 00:04:34]} 14. Nxe4 {[%clk 00:40:17]} {[%emt
00:06:40]} Nxe4 {[%clk 00:34:35]} {[%emt 00:02:18]} 15. Rfc1 {[%clk 00:38:40]}
{[%emt 00:02:06]} Bg4 {[%clk 00:29:16]} {[%emt 00:05:49]} 16. Bb5 {[%clk
00:30:32]} {[%emt 00:08:38]} Qa8 {[%clk 00:13:40]} {[%emt 00:16:03]} 17. Bd3
{[%clk 00:20:19]} {[%emt 00:10:46]} Bxf3 {[%clk 00:08:18]} {[%emt 00:05:52]} 18.
gxf3 {[%clk 00:20:23]} {[%emt 00:00:25]} Nd2 {[%clk 00:03:59]} {[%emt
00:04:49]} 19. Qd1 {[%clk 00:18:28]} {[%emt 00:02:25]} Nc4 {[%clk 00:04:27]}
{[%emt 00:00:03]} 20. Bxc4 {[%clk 00:18:31]} {[%emt 00:00:27]} dxc4 {[%clk
00:04:56]} {[%emt 00:00:02]} 21. Rxc4 {[%clk 00:18:46]} {[%emt 00:00:15]} Be7
{[%clk 00:05:11]} {[%emt 00:00:15]} 22. Qc2 {[%clk 00:17:53]} {[%emt 00:01:23]}
O-O {[%clk 00:05:21]} {[%emt 00:00:20]} 23. a3 {[%clk 00:18:00]} {[%emt
00:00:23]} c5 {[%clk 00:04:30]} {[%emt 00:01:21]} 24. dxc5 {[%clk 00:16:52]}
{[%emt 00:01:39]} Rxc5 {[%clk 00:04:33]} {[%emt 00:00:29]} 25. Rxc5 {[%clk
00:16:51]} {[%emt 00:00:29]} Bxc5 {[%clk 00:04:33]} {[%emt 00:00:30]} 26. Kg2
{[%clk 00:16:47]} {[%emt 00:00:33]} h6 {[%clk 00:04:49]} {[%emt 00:00:15]} 27.
Rc1 {[%clk 00:15:48]} {[%emt 00:01:28]} g5 {[%clk 00:04:12]} {[%emt 00:01:07]}
28. Be5 {[%clk 00:14:54]} {[%emt 00:01:24]} g4 {[%clk 00:03:57]} {[%emt
00:00:45]} 29. Qe4 {[%clk 00:13:49]} {[%emt 00:01:34]} Qxe4 {[%clk 00:03:37]}
{[%emt 00:00:50]} 30. fxe4 {[%clk 00:14:17]} {[%emt 00:00:02]} Rd8 {[%clk
00:03:10]} {[%emt 00:00:58]} 31. b4 {[%clk 00:13:03]} {[%emt 00:01:44]} Bd6
{[%clk 00:03:04]} {[%emt 00:00:35]} 32. Rd1 {[%clk 00:12:55]} {[%emt 00:00:38]}
Be7 {[%clk 00:03:17]} {[%emt 00:00:17]} 33. Rxd8+ {[%clk 00:13:03]} {[%emt
00:00:22]} Bxd8 {[%clk 00:03:43]} {[%emt 00:00:04]} 34. a4 {[%clk 00:12:26]}
{[%emt 00:01:07]} h5 {[%clk 00:03:06]} {[%emt 00:01:06]} 35. Kf1 {[%clk
00:10:27]} {[%emt 00:02:29]} Kf8 {[%clk 00:02:49]} {[%emt 00:00:48]} 36. Ke2
{[%clk 00:10:35]} {[%emt 00:00:22]} Ke7 {[%clk 00:03:10]} {[%emt 00:00:09]} 37.
Kd3 {[%clk 00:10:36]} {[%emt 00:00:29]} Kd7 {[%clk 00:02:16]} {[%emt 00:01:25]}
38. Kc3 {[%clk 00:07:24]} {[%emt 00:03:42]} Bh4 {[%clk 00:01:43]} {[%emt
00:01:03]} 39. Bg3 {[%clk 00:06:53]} {[%emt 00:01:01]} Bf6+ {[%clk 00:01:26]}
{[%emt 00:00:48]} 40. Kd2 {[%clk 00:05:52]} {[%emt 00:01:30]} e5 {[%clk
00:01:20]} {[%emt 00:00:36]} 41. f3 {[%clk 00:04:47]} {[%emt 00:01:36]} gxf3
{[%clk 00:01:27]} {[%emt 00:00:23]} 42. h3 {[%clk 00:04:54]} {[%emt 00:00:23]}
Kc6 {[%clk 00:01:28]} {[%emt 00:00:29]} 43. Ke1 {[%clk 00:03:46]} {[%emt
00:01:37]} Be7 {[%clk 00:01:18]} {[%emt 00:00:39]} 44. Bxe5 {[%clk 00:03:34]}
{[%emt 00:00:42]} Bxb4+ {[%clk 00:01:41]} {[%emt 00:00:07]} 45. Kf2 {[%clk
00:03:51]} {[%emt 00:00:14]} Bd6 {[%clk 00:01:41]} {[%emt 00:00:30]} 46. Bd4
{[%clk 00:03:42]} {[%emt 00:00:39]} Kb7 {[%clk 00:00:49]} {[%emt 00:01:22]} 47.
Kxf3 {[%clk 00:03:57]} {[%emt 00:00:15]} Ka6 {[%clk 00:00:44]} {[%emt
00:00:35]} 48. Bc3 {[%clk 00:03:05]} {[%emt 00:01:22]} f6 {[%clk 00:00:57]}
{[%emt 00:00:17]} 49. Ke2 {[%clk 00:03:10]} {[%emt 00:00:24]} Be5 {[%clk
00:01:00]} {[%emt 00:00:27]} 50. Bb4 {[%clk 00:02:43]} {[%emt 00:00:58]} Kb7
{[%clk 00:00:54]} {[%emt 00:00:36]} 51. Kd3 {[%clk 00:02:58]} {[%emt 00:00:15]}
Kc6 {[%clk 00:01:08]} {[%emt 00:00:16]} 52. Kc4 {[%clk 00:02:38]} {[%emt
00:00:49]} Bg3 {[%clk 00:00:34]} {[%emt 00:01:04]} 53. Bc3 {[%clk 00:01:26]}
{[%emt 00:01:42]} Be5 {[%clk 00:00:50]} {[%emt 00:00:14]} 54. Bd2 {[%clk
00:01:28]} {[%emt 00:00:28]} Bd6 {[%clk 00:00:45]} {[%emt 00:00:35]} 55. Be1
{[%clk 00:00:59]} {[%emt 00:01:00]} Bh2 {[%clk 00:00:51]} {[%emt 00:00:24]} 56.
Bh4 {[%clk 00:00:48]} {[%emt 00:00:41]} Be5 {[%clk 00:01:09]} {[%emt 00:00:12]}
57. Be1 {[%clk 00:00:44]} {[%emt 00:00:34]} Bh2 {[%clk 00:01:23]} {[%emt
00:00:16]} 58. Bb4 {[%clk 00:00:45]} {[%emt 00:00:29]} Bg3 {[%clk 00:01:29]}
{[%emt 00:00:24]} 59. Kd3 {[%clk 00:01:06]} {[%emt 00:00:09]} Kd7 {[%clk
00:00:48]} {[%emt 00:01:11]} 60. Kd2 {[%clk 00:00:39]} {[%emt 00:00:57]} Ke6
{[%clk 00:00:46]} {[%emt 00:00:33]} 61. Kd3 {[%clk 00:00:50]} {[%emt 00:00:19]}
Kd7 {[%clk 00:00:44]} {[%emt 00:00:31]} 1/2-1/2

[Event "Swedish U16 Team Championship 2019 - Final"]
[Site "Molnlycke Kulturhus, Biblioteksgatan 2, Molnlycke, Sweden"]
[Date "2019.08.16"]
[Round "1.7"]
[White "Soderstrom, Adrian"]
[Black "Rasmusson, Max"]
[Result "1-0"]
[TimeControl "90 minutes + 30 seconds per move from move one."]
[WhiteElo "1970"]
[BlackElo "1624"]

1. d4 {[%clk 01:30:52]} {[%emt 00:00:06]} Nf6 {[%clk 01:30:46]} {[%emt
00:00:14]} 2. c4 {[%clk 01:31:15]} {[%emt 00:00:07]} e6 {[%clk 01:30:49]}
{[%emt 00:00:27]} 3. Nf3 {[%clk 01:31:35]} {[%emt 00:00:09]} d5 {[%clk
01:30:28]} {[%emt 00:00:53]} 4. Nc3 {[%clk 01:31:57]} {[%emt 00:00:07]} c6
{[%clk 01:30:10]} {[%emt 00:00:48]} 5. e3 {[%clk 01:30:05]} {[%emt 00:02:22]}
Be7 {[%clk 01:29:08]} {[%emt 00:01:33]} 6. Qc2 {[%clk 01:28:20]} {[%emt
00:02:14]} Nbd7 {[%clk 01:28:04]} {[%emt 00:01:35]} 7. b3 {[%clk 01:25:20]}
{[%emt 00:03:29]} O-O {[%clk 01:25:28]} {[%emt 00:03:06]} 8. Bb2 {[%clk
01:25:13]} {[%emt 00:00:36]} Re8 {[%clk 01:25:26]} {[%emt 00:00:32]} 9. Bd3
{[%clk 01:23:05]} {[%emt 00:02:38]} Nf8 {[%clk 01:11:19]} {[%emt 00:14:37]} 10.
O-O {[%clk 01:22:31]} {[%emt 00:01:03]} Ng6 {[%clk 01:11:34]} {[%emt 00:00:16]}
11. Rad1 {[%clk 01:20:06]} {[%emt 00:02:55]} Bd7 {[%clk 01:02:43]} {[%emt
00:09:21]} 12. e4 {[%clk 01:12:28]} {[%emt 00:08:07]} dxe4 {[%clk 01:01:01]}
{[%emt 00:02:14]} 13. Nxe4 {[%clk 01:12:50]} {[%emt 00:00:07]} Nxe4 {[%clk
00:54:55]} {[%emt 00:06:36]} 14. Bxe4 {[%clk 01:13:12]} {[%emt 00:00:08]} Bf6
{[%clk 00:55:08]} {[%emt 00:00:18]} 15. Ne5 {[%clk 01:10:27]} {[%emt 00:03:14]}
Qe7 {[%clk 00:54:51]} {[%emt 00:00:47]} 16. Rd3 {[%clk 01:05:41]} {[%emt
00:05:15]} Rad8 {[%clk 00:49:16]} {[%emt 00:06:07]} 17. Rh3 {[%clk 01:04:12]}
{[%emt 00:01:57]} Bc8 {[%clk 00:45:06]} {[%emt 00:04:41]} 18. f4 {[%clk
00:42:37]} {[%emt 00:22:05]} c5 {[%clk 00:37:44]} {[%emt 00:07:53]} 19. Qe2
{[%clk 00:33:28]} {[%emt 00:09:38]} Nf8 {[%clk 00:27:43]} {[%emt 00:10:32]} 20.
Bxh7+ {[%clk 00:29:41]} {[%emt 00:04:18]} Nxh7 {[%clk 00:28:11]} {[%emt
00:00:01]} 21. Qh5 {[%clk 00:29:56]} {[%emt 00:00:14]} g6 {[%clk 00:28:33]}
{[%emt 00:00:09]} 22. Qxh7+ {[%clk 00:30:11]} {[%emt 00:00:14]} Kf8 {[%clk
00:28:54]} {[%emt 00:00:08]} 23. Ba3 {[%clk 00:28:35]} {[%emt 00:02:08]} 1-0

[Event "Swedish U16 Team Championship 2019 - Final"]
[Site "Molnlycke Kulturhus, Biblioteksgatan 2, Molnlycke, Sweden"]
[Date "2019.08.16"]
[Round "1.8"]
[White "Holmquist, Oliver 2006"]
[Black "Falkevall, Axel"]
[Result "0-1"]
[TimeControl "90 minutes + 30 seconds per move from move one."]
[WhiteElo "1137"]
[BlackElo "2046"]

1. e4 {[%clk 01:30:57]} {[%emt 00:00:02]} e6 {[%clk 01:30:48]} {[%emt
00:00:12]} 2. Nc3 {[%clk 01:31:00]} {[%emt 00:00:27]} d5 {[%clk 01:31:11]}
{[%emt 00:00:07]} 3. exd5 {[%clk 01:30:45]} {[%emt 00:00:46]} exd5 {[%clk
01:31:33]} {[%emt 00:00:08]} 4. d4 {[%clk 01:31:03]} {[%emt 00:00:12]} c6
{[%clk 01:30:56]} {[%emt 00:01:07]} 5. Bd3 {[%clk 01:30:14]} {[%emt 00:01:19]}
Bd6 {[%clk 01:31:08]} {[%emt 00:00:18]} 6. Nf3 {[%clk 01:28:42]} {[%emt
00:02:02]} Ne7 {[%clk 01:30:21]} {[%emt 00:01:16]} 7. h3 {[%clk 01:26:55]}
{[%emt 00:02:18]} h6 {[%clk 01:30:01]} {[%emt 00:00:50]} 8. O-O {[%clk
01:25:51]} {[%emt 00:01:34]} Be6 {[%clk 01:29:02]} {[%emt 00:01:27]} 9. Be3
{[%clk 01:24:19]} {[%emt 00:02:04]} Nd7 {[%clk 01:28:48]} {[%emt 00:00:43]} 10.
a3 {[%clk 01:22:28]} {[%emt 00:02:23]} Qc7 {[%clk 01:26:29]} {[%emt 00:02:49]}
11. Ne2 {[%clk 01:21:34]} {[%emt 00:01:25]} Nf6 {[%clk 01:23:15]} {[%emt
00:03:44]} 12. Qc1 {[%clk 01:16:48]} {[%emt 00:05:07]} Nh5 {[%clk 01:15:45]}
{[%emt 00:08:07]} 13. Qe1 {[%clk 01:09:17]} {[%emt 00:08:03]} O-O-O {[%clk
01:07:19]} {[%emt 00:08:55]} 14. g4 {[%clk 01:03:43]} {[%emt 00:06:05]} Nf6
{[%clk 01:05:29]} {[%emt 00:02:16]} 15. Qc1 {[%clk 01:02:29]} {[%emt 00:01:47]}
g5 {[%clk 00:56:49]} {[%emt 00:09:10]} 16. Bd2 {[%clk 00:55:28]} {[%emt
00:07:31]} Rdg8 {[%clk 00:54:12]} {[%emt 00:03:06]} 17. Bb4 {[%clk 00:54:53]}
{[%emt 00:01:06]} h5 {[%clk 00:53:31]} {[%emt 00:01:10]} 18. Bxd6 {[%clk
00:54:13]} {[%emt 00:01:10]} Qxd6 {[%clk 00:53:55]} {[%emt 00:00:06]} 19. Ne5
{[%clk 00:50:23]} {[%emt 00:04:20]} hxg4 {[%clk 00:52:59]} {[%emt 00:01:27]} 20.
hxg4 {[%clk 00:48:35]} {[%emt 00:02:18]} Nxg4 {[%clk 00:51:39]} {[%emt
00:01:49]} 21. Nxg4 {[%clk 00:45:42]} {[%emt 00:03:23]} Bxg4 {[%clk 00:51:40]}
{[%emt 00:00:28]} 22. Ng3 {[%clk 00:45:55]} {[%emt 00:00:18]} Rh3 {[%clk
00:50:56]} {[%emt 00:01:09]} 23. Qe3 {[%clk 00:45:57]} {[%emt 00:00:32]} Rgh8
{[%clk 00:49:21]} {[%emt 00:02:06]} 24. Qe5 {[%clk 00:44:04]} {[%emt 00:02:11]}
Qxe5 {[%clk 00:49:20]} {[%emt 00:00:42]} 25. dxe5 {[%emt 00:00:12]} Bf3 {[%clk
00:49:38]} {[%emt 00:00:09]} 26. Be2 {[%clk 00:43:32]} {[%emt 00:01:24]} Rh1+
{[%clk 00:49:58]} {[%emt 00:00:11]} 27. Nxh1 {[%clk 00:43:53]} {[%emt
00:00:09]} Rxh1# {[%clk 00:50:22]} {[%emt 00:00:05]} 0-1

[Event "Swedish U16 Team Championship 2019 - Final"]
[Site "Molnlycke Kulturhus, Biblioteksgatan 2, Molnlycke, Sweden"]
[Date "2019.08.16"]
[Round "1.9"]
[White "Grahn, Vidar"]
[Black "Johansson, Sigge"]
[Result "1-0"]
[TimeControl "90 minutes + 30 seconds per move from move one."]
[WhiteElo "1898"]
[BlackElo "1123"]

1. e4 {[%clk 01:30:56]} {[%emt 00:00:03]} e5 {[%clk 01:30:53]} {[%emt
00:00:08]} 2. Nf3 {[%clk 01:31:21]} {[%emt 00:00:04]} Nc6 {[%clk 01:31:13]}
{[%emt 00:00:11]} 3. Bc4 {[%clk 01:31:46]} {[%emt 00:00:05]} d6 {[%clk
01:31:17]} {[%emt 00:00:26]} 4. O-O {[%clk 01:30:57]} {[%emt 00:01:19]} Bg4
{[%clk 01:31:18]} {[%emt 00:00:29]} 5. d3 {[%clk 01:31:13]} {[%emt 00:00:13]}
Nf6 {[%clk 01:31:27]} {[%emt 00:00:21]} 6. c3 {[%clk 01:31:18]} {[%emt
00:00:26]} Be7 {[%clk 01:30:40]} {[%emt 00:01:17]} 7. Nbd2 {[%clk 01:31:32]}
{[%emt 00:00:16]} O-O {[%clk 01:30:03]} {[%emt 00:01:06]} 8. h3 {[%clk
01:31:49]} {[%emt 00:00:14]} Bh5 {[%clk 01:30:00]} {[%emt 00:00:33]} 9. Re1
{[%clk 01:31:05]} {[%emt 00:01:14]} d5 {[%clk 01:27:44]} {[%emt 00:02:46]} 10.
exd5 {[%clk 01:28:13]} {[%emt 00:03:23]} Nxd5 {[%clk 01:27:57]} {[%emt
00:00:17]} 11. Ne4 {[%clk 01:20:15]} {[%emt 00:08:27]} Nf4 {[%clk 01:21:31]}
{[%emt 00:06:55]} 12. Ng3 {[%clk 01:15:22]} {[%emt 00:05:24]} Bg6 {[%clk
01:17:11]} {[%emt 00:04:50]} 13. Nxe5 {[%clk 01:12:10]} {[%emt 00:03:42]} Nxe5
{[%clk 01:16:53]} {[%emt 00:00:47]} 14. Rxe5 {[%clk 01:12:23]} {[%emt
00:00:17]} Nxd3 {[%clk 01:13:57]} {[%emt 00:03:27]} 15. Rd5 {[%clk 01:10:48]}
{[%emt 00:02:05]} Nxf2 {[%clk 01:11:51]} {[%emt 00:02:35]} 16. Rxd8 {[%clk
01:07:42]} {[%emt 00:03:37]} Nxd1 {[%clk 01:11:43]} {[%emt 00:00:38]} 17. Rxd1
{[%clk 01:08:06]} {[%emt 00:00:06]} Rad8 {[%clk 01:11:30]} {[%emt 00:00:42]} 18.
Be3 {[%clk 01:05:42]} {[%emt 00:02:50]} b6 {[%clk 01:10:42]} {[%emt 00:01:23]}
19. Bb3 {[%clk 01:05:20]} {[%emt 00:00:51]} Bh4 {[%clk 01:08:37]} {[%emt
00:02:34]} 20. Bf2 {[%clk 01:04:12]} {[%emt 00:01:39]} Rfe8 {[%clk 01:06:32]}
{[%emt 00:02:34]} 21. Rxd8 {[%clk 01:04:12]} {[%emt 00:00:31]} Rxd8 {[%clk
01:06:56]} {[%emt 00:00:07]} 22. Rd1 {[%clk 01:04:06]} {[%emt 00:00:34]} Rxd1+
{[%clk 01:05:47]} {[%emt 00:01:41]} 23. Bxd1 {[%clk 01:04:30]} {[%emt
00:00:06]} Bb1 {[%clk 01:06:10]} {[%emt 00:00:05]} 24. a3 {[%clk 01:03:20]}
{[%emt 00:01:41]} Bg5 {[%clk 01:04:44]} {[%emt 00:01:55]} 25. Ne2 {[%clk
01:01:37]} {[%emt 00:02:14]} Be4 {[%clk 01:03:10]} {[%emt 00:02:02]} 26. Bg3
{[%clk 01:00:36]} {[%emt 00:01:31]} c6 {[%clk 01:03:05]} {[%emt 00:00:37]} 27.
Bf4 {[%clk 01:00:41]} {[%emt 00:00:24]} Bf6 {[%clk 01:00:38]} {[%emt 00:02:55]}
28. Ng3 {[%clk 00:59:28]} {[%emt 00:01:43]} Bd5 {[%clk 01:00:18]} {[%emt
00:00:51]} 29. Bf3 {[%clk 00:59:21]} {[%emt 00:00:37]} Bxf3 {[%clk 01:00:25]}
{[%emt 00:00:24]} 30. gxf3 {[%clk 00:59:45]} {[%emt 00:00:06]} Kf8 {[%clk
01:00:37]} {[%emt 00:00:16]} 31. Ne4 {[%clk 00:59:44]} {[%emt 00:00:33]} Be7
{[%clk 01:00:30]} {[%emt 00:00:36]} 32. Bd6 {[%clk 01:00:06]} {[%emt 00:00:09]}
Bxd6 {[%clk 01:00:39]} {[%emt 00:00:22]} 33. Nxd6 {[%clk 01:00:29]} {[%emt
00:00:07]} Ke7 {[%clk 01:01:02]} {[%emt 00:00:07]} 34. Nf5+ {[%clk 01:00:11]}
{[%emt 00:00:46]} Kf6 {[%clk 01:01:23]} {[%emt 00:00:10]} 35. Nd4 {[%clk
01:00:19]} {[%emt 00:00:17]} c5 {[%clk 01:01:39]} {[%emt 00:00:19]} 36. Nb5
{[%clk 01:00:38]} {[%emt 00:00:10]} a5 {[%clk 01:01:21]} {[%emt 00:00:48]} 37.
Nc7 {[%clk 01:00:12]} {[%emt 00:00:53]} Ke7 {[%clk 01:01:23]} {[%emt 00:00:30]}
38. Nd5+ {[%clk 01:00:08]} {[%emt 00:00:33]} Kd6 {[%clk 00:59:44]} {[%emt
00:02:10]} 39. Nxb6 {[%clk 00:59:57]} {[%emt 00:00:41]} 1-0

[Event "Swedish U16 Team Championship 2019 - Final"]
[Site "Molnlycke Kulturhus, Biblioteksgatan 2, Molnlycke, Sweden"]
[Date "2019.08.16"]
[Round "1.11"]
[White "Tran, Alva Ling"]
[Black "Lyngsjo, Luke"]
[Result "1-0"]
[TimeControl "90 minutes + 30 seconds per move from move one."]
[WhiteElo "1735"]
[BlackElo "1107"]

1. e4 {[%clk 01:30:58]} e5 {[%clk 01:30:40]} {[%emt 00:00:21]} 2. Nf3 {[%clk
01:31:22]} {[%emt 00:00:07]} Nf6 {[%clk 01:30:48]} {[%emt 00:00:22]} 3. Nxe5
{[%clk 01:31:37]} {[%emt 00:00:15]} d6 {[%clk 01:30:51]} {[%emt 00:00:26]} 4.
Nf3 {[%clk 01:31:59]} {[%emt 00:00:08]} Nxe4 {[%clk 01:31:02]} {[%emt
00:00:19]} 5. d3 {[%clk 01:32:13]} {[%emt 00:00:16]} Nf6 {[%clk 01:30:33]}
{[%emt 00:01:00]} 6. d4 {[%clk 01:32:09]} {[%emt 00:00:33]} Be7 {[%clk
01:29:56]} {[%emt 00:01:07]} 7. Bd3 {[%clk 01:32:00]} {[%emt 00:00:39]} O-O
{[%clk 01:28:31]} {[%emt 00:01:55]} 8. O-O {[%clk 01:31:41]} {[%emt 00:00:49]}
Be6 {[%clk 01:26:14]} {[%emt 00:02:47]} 9. Bg5 {[%clk 01:23:46]} {[%emt
00:08:25]} Nbd7 {[%clk 01:24:38]} {[%emt 00:02:07]} 10. c4 {[%clk 01:21:56]}
{[%emt 00:02:20]} d5 {[%clk 01:22:42]} {[%emt 00:02:25]} 11. Nbd2 {[%clk
01:20:58]} {[%emt 00:01:28]} c5 {[%clk 01:21:34]} {[%emt 00:01:38]} 12. Rc1
{[%clk 01:12:27]} {[%emt 00:09:01]} dxc4 {[%clk 01:14:46]} {[%emt 00:07:18]} 13.
Nxc4 {[%clk 01:09:24]} {[%emt 00:03:33]} b5 {[%clk 01:14:12]} {[%emt 00:01:03]}
14. Ne3 {[%clk 01:04:02]} {[%emt 00:05:52]} c4 {[%clk 01:13:27]} {[%emt
00:01:16]} 15. Bb1 {[%clk 00:59:12]} {[%emt 00:05:19]} Ng4 {[%clk 01:11:57]}
{[%emt 00:02:00]} 16. Bxe7 {[%clk 00:57:20]} {[%emt 00:02:22]} Qxe7 {[%clk
01:12:11]} {[%emt 00:00:15]} 17. d5 {[%clk 00:53:02]} {[%emt 00:04:49]} Nxe3
{[%clk 01:10:55]} {[%emt 00:01:46]} 18. fxe3 {[%emt 00:00:11]} Bg4 {[%clk
01:10:22]} {[%emt 00:01:01]} 19. Qd4 {[%clk 00:51:58]} {[%emt 00:01:56]} Bxf3
{[%clk 01:09:07]} {[%emt 00:01:45]} 20. Rxf3 {[%clk 00:51:54]} {[%emt
00:00:34]} Qe5 {[%clk 01:07:59]} {[%emt 00:01:37]} 21. Qd2 {[%clk 00:48:12]}
{[%emt 00:04:13]} Rfe8 {[%clk 01:05:04]} {[%emt 00:03:25]} 22. Re1 {[%clk
00:45:29]} {[%emt 00:03:12]} g6 {[%clk 01:04:09]} {[%emt 00:01:25]} 23. e4
{[%clk 00:43:40]} {[%emt 00:02:19]} Nc5 {[%clk 01:03:00]} {[%emt 00:01:39]} 24.
Qf2 {[%clk 00:41:23]} {[%emt 00:02:47]} Nd3 {[%clk 01:00:39]} {[%emt 00:02:51]}
25. Bxd3 {[%clk 00:39:01]} {[%emt 00:02:52]} cxd3 {[%clk 00:58:42]} {[%emt
00:02:27]} 26. Rxd3 {[%clk 00:37:54]} {[%emt 00:01:38]} Rad8 {[%clk 00:54:34]}
{[%emt 00:04:38]} 27. Qd4 {[%clk 00:34:20]} {[%emt 00:04:03]} Qxd4+ {[%clk
00:53:53]} {[%emt 00:01:11]} 28. Rxd4 {[%clk 00:34:45]} {[%emt 00:00:06]} Re5
{[%clk 00:52:02]} {[%emt 00:02:21]} 29. Rc1 {[%clk 00:30:18]} {[%emt 00:04:57]}
f5 {[%clk 00:49:25]} {[%emt 00:03:07]} 30. exf5 {[%clk 00:23:22]} {[%emt
00:07:27]} Rxf5 {[%clk 00:48:03]} {[%emt 00:01:51]} 31. d6 {[%clk 00:22:13]}
{[%emt 00:01:39]} Rf7 {[%clk 00:45:06]} {[%emt 00:03:26]} 32. Rc5 {[%clk
00:19:57]} {[%emt 00:02:46]} Rfd7 {[%clk 00:42:41]} {[%emt 00:02:55]} 33. Rxb5
{[%clk 00:19:04]} {[%emt 00:01:23]} Rxd6 {[%clk 00:42:31]} {[%emt 00:00:39]} 34.
Rxd6 {[%clk 00:19:15]} {[%emt 00:00:19]} Rxd6 {[%clk 00:42:54]} {[%emt
00:00:08]} 35. Kf2 {[%clk 00:19:09]} {[%emt 00:00:36]} Rd7 {[%clk 00:42:12]}
{[%emt 00:01:12]} 36. a4 {[%clk 00:17:21]} {[%emt 00:02:18]} Rd2+ {[%clk
00:39:15]} {[%emt 00:03:27]} 37. Kf3 {[%clk 00:17:26]} {[%emt 00:00:25]} a5
{[%clk 00:38:03]} {[%emt 00:01:41]} 38. Rxa5 {[%clk 00:15:23]} {[%emt
00:02:33]} Rxb2 {[%clk 00:38:19]} {[%emt 00:00:14]} 39. Ra7 {[%clk 00:14:55]}
{[%emt 00:00:58]} Rb3+ {[%clk 00:37:16]} {[%emt 00:01:32]} 40. Ke4 {[%clk
00:13:37]} {[%emt 00:01:48]} Rb2 {[%clk 00:35:54]} {[%emt 00:01:52]} 41. a5
{[%clk 00:11:41]} {[%emt 00:02:27]} Rxg2 {[%clk 00:33:56]} {[%emt 00:02:27]} 42.
a6 {[%clk 00:12:03]} {[%emt 00:00:09]} Rxh2 {[%clk 00:32:57]} {[%emt 00:01:30]}
43. Rb7 {[%clk 00:11:54]} {[%emt 00:00:39]} 1-0

[Event "Swedish U16 Team Championship 2019 - Final"]
[Site "Molnlycke Kulturhus, Biblioteksgatan 2, Molnlycke, Sweden"]
[Date "2019.08.16"]
[Round "1.13"]
[White "Rasti, Arvin"]
[Black "Ytterberg, Felix"]
[Result "1/2-1/2"]
[TimeControl "90 minutes + 30 seconds per move from move one."]
[WhiteElo "2116"]
[BlackElo "2033"]

1. d4 {[%clk 01:30:53]} {[%emt 00:00:06]} Nf6 {[%clk 01:30:43]} {[%emt
00:00:17]} 2. c4 {[%clk 01:31:10]} {[%emt 00:00:14]} c5 {[%clk 01:30:31]}
{[%emt 00:00:42]} 3. d5 {[%clk 01:31:11]} {[%emt 00:00:30]} e5 {[%clk
01:30:51]} {[%emt 00:00:10]} 4. Nc3 {[%clk 01:30:09]} {[%emt 00:01:32]} d6
{[%clk 01:31:00]} {[%emt 00:00:21]} 5. e4 {[%clk 01:30:09]} {[%emt 00:00:29]}
Be7 {[%clk 01:31:01]} {[%emt 00:00:29]} 6. g3 {[%clk 01:30:21]} {[%emt
00:00:19]} O-O {[%clk 01:31:06]} {[%emt 00:00:24]} 7. Bg2 {[%clk 01:30:47]}
{[%emt 00:00:05]} Bg4 {[%clk 01:26:35]} {[%emt 00:05:00]} 8. Nge2 {[%clk
01:27:40]} {[%emt 00:03:38]} a6 {[%clk 01:24:19]} {[%emt 00:02:46]} 9. O-O
{[%clk 01:25:10]} {[%emt 00:02:59]} Ne8 {[%clk 01:22:08]} {[%emt 00:02:38]} 10.
f4 {[%clk 01:19:20]} {[%emt 00:06:22]} exf4 {[%clk 01:21:28]} {[%emt 00:01:10]}
11. gxf4 {[%clk 01:19:34]} {[%emt 00:00:17]} Nd7 {[%clk 01:20:35]} {[%emt
00:01:20]} 12. h3 {[%clk 01:13:23]} {[%emt 00:06:43]} Bh5 {[%clk 01:18:39]}
{[%emt 00:02:26]} 13. Qd3 {[%clk 01:12:29]} {[%emt 00:01:25]} g6 {[%clk
01:15:34]} {[%emt 00:03:35]} 14. Ng3 {[%clk 01:08:40]} {[%emt 00:04:21]} Ng7
{[%clk 01:14:55]} {[%emt 00:01:04]} 15. Bd2 {[%clk 01:04:05]} {[%emt 00:05:08]}
Bf6 {[%clk 01:14:16]} {[%emt 00:01:09]} 16. Rab1 {[%clk 00:58:56]} {[%emt
00:05:40]} Bd4+ {[%clk 01:05:01]} {[%emt 00:09:41]} 17. Kh2 {[%clk 00:55:01]}
{[%emt 00:04:28]} g5 {[%clk 01:01:27]} {[%emt 00:04:05]} 18. Nce2 {[%clk
00:40:57]} {[%emt 00:14:34]} gxf4 {[%clk 00:58:04]} {[%emt 00:03:53]} 19. Bxf4
{[%clk 00:26:06]} {[%emt 00:15:20]} Ne5 {[%clk 00:55:11]} {[%emt 00:03:23]} 20.
Qd2 {[%clk 00:20:46]} {[%emt 00:05:51]} Ng4+ {[%clk 00:54:08]} {[%emt
00:01:33]} 21. Kh1 {[%clk 00:21:14]} {[%emt 00:00:02]} Nf2+ {[%clk 00:53:54]}
{[%emt 00:00:43]} 22. Kh2 {[%clk 00:19:51]} {[%emt 00:01:53]} Ng4+ {[%clk
00:54:22]} {[%emt 00:00:02]} 23. Kh1 {[%clk 00:18:34]} {[%emt 00:01:47]} Nf2+
{[%clk 00:54:41]} {[%emt 00:00:11]} 24. Kh2 {[%clk 00:17:05]} {[%emt 00:01:59]}
1/2-1/2